[Event "Titled Tuesday Blitz June 13 Early 2023"]
[White "Rakotomaharo, Fy Antenaina"]
[Black "Zhigalko, Sergei"]
[WhiteFideId "13100050"]
[BlackFideId "13502956"]
[WhiteElo "2427"]
[BlackElo "2626"]
[Result "0-1"]
[Round "4"]
[TimeControl "180+2"]
[Date "2023.06.13"]
[WhiteClock "0:00:23"]
[BlackClock "0:00:19"]
[Board "16"]

1. c4 {[%clk 0:03:00]}  e5 {[%clk 0:03:00]} 2. g3 {[%clk 0:03:00]}  Nf6 {[%clk 0:03:00]} 3. Bg2 {[%clk 0:03:00]}  c6 {[%clk 0:03:01]} 4. Nf3 {[%clk 0:02:59]}  d6 {[%clk 0:03:01]} 5. Nc3 {[%clk 0:02:58]}  Be7 {[%clk 0:03:01]} 6. d4 {[%clk 0:02:58]}  e4 {[%clk 0:03:01]} 7. Ng5 {[%clk 0:02:54]}  d5 {[%clk 0:03:01]} 8. Qb3 {[%clk 0:02:51]}  O-O {[%clk 0:02:57]} 9. O-O {[%clk 0:02:51]}  h6 {[%clk 0:02:43]} 10. Nh3 {[%clk 0:02:51]}  dxc4 {[%clk 0:02:42]} 11. Qxc4 {[%clk 0:02:52]}  Bf5 {[%clk 0:02:42]} 12. f3 {[%clk 0:02:20]}  exf3 {[%clk 0:02:32]} 13. exf3 {[%clk 0:02:15]}  b5 {[%clk 0:02:04]} 14. Qe2 {[%clk 0:02:15]}  Qxd4+ {[%clk 0:02:02]} 15. Be3 {[%clk 0:02:12]}  Qd7 {[%clk 0:01:56]} 16. Rad1 {[%clk 0:02:05]}  Qc8 {[%clk 0:01:56]} 17. g4 {[%clk 0:01:59]}  Be6 {[%clk 0:01:54]} 18. Rfe1 {[%clk 0:01:52]}  Nbd7 {[%clk 0:01:34]} 19. Nf4 {[%clk 0:01:52]}  Bc4 {[%clk 0:01:33]} 20. Qc2 {[%clk 0:01:48]}  b4 {[%clk 0:01:13]} 21. Ne4 {[%clk 0:01:38]}  Bd5 {[%clk 0:01:06]} 22. Nc5 {[%clk 0:01:19]}  Re8 {[%clk 0:01:01]} 23. Nxd7 {[%clk 0:01:14]}  Qxd7 {[%clk 0:00:59]} 24. Bd4 {[%clk 0:01:13]}  Qd6 {[%clk 0:00:53]} 25. Bxf6 {[%clk 0:01:07]}  Bxf6 {[%clk 0:00:50]} 26. Rxe8+ {[%clk 0:01:04]}  Rxe8 {[%clk 0:00:49]} 27. Nxd5 {[%clk 0:01:05]}  cxd5 {[%clk 0:00:50]} 28. Qa4 {[%clk 0:00:58]}  Re2 {[%clk 0:00:44]} 29. Qxa7 {[%clk 0:00:57]}  Rxb2 {[%clk 0:00:31]} 30. f4 {[%clk 0:00:43]}  Qxf4 {[%clk 0:00:24]} 31. Qa8+ {[%clk 0:00:43]}  Kh7 {[%clk 0:00:24]} 32. Qxd5 {[%clk 0:00:44]}  Qxg4 {[%clk 0:00:21]} 33. Kh1 {[%clk 0:00:23]}  Rxg2 {[%clk 0:00:19]} 0-1


[Site "https://www.chess.com"]

[Event "Titled Tuesday Blitz June 13 Early 2023"]
[White "Maatman, Nick"]
[Black "Swiercz, Dariusz"]
[WhiteFideId "1040391"]
[BlackFideId "1126881"]
[WhiteElo "2717"]
[BlackElo "2620"]
[Result "0-1"]
[Round "4"]
[TimeControl "180+2"]
[Date "2023.06.13"]
[WhiteClock "0:01:01"]
[BlackClock "0:01:49"]
[Board "17"]

1. d4 {[%clk 0:03:00]}  Nf6 {[%clk 0:02:55]} 2. c4 {[%clk 0:02:59]}  e6 {[%clk 0:02:53]} 3. g3 {[%clk 0:02:57]}  c5 {[%clk 0:02:51]} 4. d5 {[%clk 0:02:57]}  exd5 {[%clk 0:02:51]} 5. cxd5 {[%clk 0:02:58]}  d6 {[%clk 0:02:52]} 6. Nc3 {[%clk 0:02:56]}  g6 {[%clk 0:02:52]} 7. Bg2 {[%clk 0:02:56]}  Bg7 {[%clk 0:02:53]} 8. Nf3 {[%clk 0:02:56]}  O-O {[%clk 0:02:54]} 9. O-O {[%clk 0:02:57]}  a6 {[%clk 0:02:52]} 10. a4 {[%clk 0:02:56]}  Nbd7 {[%clk 0:02:53]} 11. Bf4 {[%clk 0:02:55]}  Qe7 {[%clk 0:02:53]} 12. Qc1 {[%clk 0:02:15]}  Rb8 {[%clk 0:02:49]} 13. a5 {[%clk 0:02:06]}  b5 {[%clk 0:02:45]} 14. axb6 {[%clk 0:02:07]}  Rxb6 {[%clk 0:02:45]} 15. Ra4 {[%clk 0:01:45]}  Rb4 {[%clk 0:02:37]} 16. Nd2 {[%clk 0:01:18]}  Nh5 {[%clk 0:01:51]} 17. Be3 {[%clk 0:01:01]}  Bxc3 {[%clk 0:01:49]} 0-1


[Site "https://www.chess.com"]

[Event "Titled Tuesday Blitz June 13 Early 2023"]
[White "Bharath Subramaniyam H"]
[Black "Maevsky, Nikolay"]
[WhiteFideId "46634827"]
[BlackFideId "4198220"]
[WhiteElo "2400"]
[BlackElo "2021"]
[Result "1-0"]
[Round "4"]
[TimeControl "180+2"]
[Date "2023.06.13"]
[WhiteClock "0:00:24"]
[BlackClock "0:00:20"]
[Board "18"]

1. b3 {[%clk 0:03:00]}  d5 {[%clk 0:02:59]} 2. Bb2 {[%clk 0:03:00]}  Bg4 {[%clk 0:03:00]} 3. f3 {[%clk 0:03:00]}  Bf5 {[%clk 0:02:59]} 4. e4 {[%clk 0:03:00]}  dxe4 {[%clk 0:02:59]} 5. Nc3 {[%clk 0:03:01]}  e3 {[%clk 0:02:58]} 6. dxe3 {[%clk 0:02:57]}  Qxd1+ {[%clk 0:02:58]} 7. Rxd1 {[%clk 0:02:53]}  c6 {[%clk 0:02:58]} 8. e4 {[%clk 0:02:51]}  Bg6 {[%clk 0:02:58]} 9. h4 {[%clk 0:02:45]}  h6 {[%clk 0:02:51]} 10. Nge2 {[%clk 0:02:43]}  e5 {[%clk 0:02:51]} 11. g4 {[%clk 0:02:26]}  Nd7 {[%clk 0:02:45]} 12. Ng3 {[%clk 0:02:25]}  O-O-O {[%clk 0:02:32]} 13. h5 {[%clk 0:02:23]}  Bh7 {[%clk 0:02:32]} 14. Bc4 {[%clk 0:02:23]}  f6 {[%clk 0:02:27]} 15. Nf5 {[%clk 0:02:10]}  Kc7 {[%clk 0:02:26]} 16. O-O {[%clk 0:01:59]}  Bc5+ {[%clk 0:02:26]} 17. Kg2 {[%clk 0:01:59]}  Bxf5 {[%clk 0:02:26]} 18. gxf5 {[%clk 0:01:57]}  Ne7 {[%clk 0:02:26]} 19. Be6 {[%clk 0:01:48]}  Bd4 {[%clk 0:02:24]} 20. Ba3 {[%clk 0:01:42]}  Nc5 {[%clk 0:02:12]} 21. Rxd4 {[%clk 0:01:38]}  exd4 {[%clk 0:01:57]} 22. Bxc5 {[%clk 0:01:37]}  dxc3 {[%clk 0:01:43]} 23. Bxe7 {[%clk 0:01:33]}  Rd2+ {[%clk 0:01:43]} 24. Rf2 {[%clk 0:01:33]}  Rxf2+ {[%clk 0:01:43]} 25. Kxf2 {[%clk 0:01:32]}  a5 {[%clk 0:01:41]} 26. f4 {[%clk 0:01:21]}  Re8 {[%clk 0:01:41]} 27. Bc5 {[%clk 0:01:20]}  Rd8 {[%clk 0:01:38]} 28. Be3 {[%clk 0:01:12]}  Rd1 {[%clk 0:01:38]} 29. e5 {[%clk 0:01:08]}  Rh1 {[%clk 0:01:33]} 30. Bf7 {[%clk 0:00:59]}  Rh2+ {[%clk 0:01:32]} 31. Kf3 {[%clk 0:00:59]}  Rxc2 {[%clk 0:01:23]} 32. e6 {[%clk 0:00:59]}  Kd6 {[%clk 0:01:08]} 33. Bc5+ {[%clk 0:00:59]}  Kxc5 {[%clk 0:01:07]} 34. e7 {[%clk 0:00:59]}  Rf2+ {[%clk 0:00:50]} 35. Kxf2 {[%clk 0:00:58]}  c2 {[%clk 0:00:51]} 36. e8=Q {[%clk 0:00:57]}  c1=Q {[%clk 0:00:51]} 37. Qe3+ {[%clk 0:00:31]}  Qxe3+ {[%clk 0:00:51]} 38. Kxe3 {[%clk 0:00:32]}  b5 {[%clk 0:00:51]} 39. a3 {[%clk 0:00:30]}  Kd6 {[%clk 0:00:37]} 40. Kd4 {[%clk 0:00:27]}  c5+ {[%clk 0:00:38]} 41. Ke4 {[%clk 0:00:27]}  Kc6 {[%clk 0:00:22]} 42. Be8+ {[%clk 0:00:25]}  Kb6 {[%clk 0:00:22]} 43. Kd5 {[%clk 0:00:25]}  c4 {[%clk 0:00:20]} 44. bxc4 {[%clk 0:00:24]}  b4 {[%clk 0:00:21]} 45. axb4 {[%clk 0:00:24]}  axb4 {[%clk 0:00:21]} 46. Ba4 {[%clk 0:00:25]}  Kc7 {[%clk 0:00:21]} 47. Kc5 {[%clk 0:00:25]}  b3 {[%clk 0:00:20]} 48. Bxb3 {[%clk 0:00:24]} 1-0


[Site "https://www.chess.com"]

[Event "Titled Tuesday Blitz June 13 Early 2023"]
[White "Babazada, Khazar"]
[Black "ArtemDyachuk"]
[WhiteFideId "13413554"]
[WhiteElo "2369"]
[BlackElo "2631"]
[Result "1-0"]
[Round "4"]
[TimeControl "180+2"]
[Date "2023.06.13"]
[WhiteClock "0:00:04"]
[BlackClock "0:00:00"]
[Board "19"]

1. Nf3 {[%clk 0:03:00]}  Nf6 {[%clk 0:02:54]} 2. d4 {[%clk 0:02:59]}  e6 {[%clk 0:02:53]} 3. Bf4 {[%clk 0:02:59]}  c5 {[%clk 0:02:51]} 4. e3 {[%clk 0:03:00]}  b6 {[%clk 0:02:50]} 5. Nbd2 {[%clk 0:02:59]}  Bb7 {[%clk 0:02:42]} 6. c3 {[%clk 0:02:59]}  Nc6 {[%clk 0:02:40]} 7. Bd3 {[%clk 0:02:59]}  Be7 {[%clk 0:02:39]} 8. h4 {[%clk 0:02:54]}  d6 {[%clk 0:02:27]} 9. h5 {[%clk 0:02:52]}  h6 {[%clk 0:02:26]} 10. Qe2 {[%clk 0:02:51]}  Qc7 {[%clk 0:02:19]} 11. O-O-O {[%clk 0:02:45]}  cxd4 {[%clk 0:02:10]} 12. exd4 {[%clk 0:02:46]}  Nd5 {[%clk 0:01:48]} 13. Bg3 {[%clk 0:02:42]}  O-O-O {[%clk 0:01:37]} 14. Kb1 {[%clk 0:02:40]}  Kb8 {[%clk 0:01:33]} 15. Rhe1 {[%clk 0:02:37]}  Rhe8 {[%clk 0:01:26]} 16. Nc4 {[%clk 0:02:31]}  Bf6 {[%clk 0:01:09]} 17. Ne3 {[%clk 0:02:30]}  Nxe3 {[%clk 0:01:09]} 18. fxe3 {[%clk 0:02:29]}  e5 {[%clk 0:01:04]} 19. Bb5 {[%clk 0:02:03]}  Rf8 {[%clk 0:00:30]} 20. Nd2 {[%clk 0:01:53]}  Ne7 {[%clk 0:00:20]} 21. e4 {[%clk 0:01:45]}  Nc6 {[%clk 0:00:09]} 22. d5 {[%clk 0:01:34]}  Ne7 {[%clk 0:00:09]} 23. a4 {[%clk 0:01:34]}  Bg5 {[%clk 0:00:09]} 24. Bf2 {[%clk 0:01:32]}  f5 {[%clk 0:00:09]} 25. exf5 {[%clk 0:01:32]}  Nxd5 {[%clk 0:00:09]} 26. g3 {[%clk 0:01:12]}  Nxc3+ {[%clk 0:00:08]} 27. bxc3 {[%clk 0:01:11]}  Qxc3 {[%clk 0:00:09]} 28. Nc4 {[%clk 0:01:10]}  Rc8 {[%clk 0:00:07]} 29. Nxd6 {[%clk 0:00:55]}  Bf3 {[%clk 0:00:07]} 30. Qb2 {[%clk 0:00:45]}  Bxd1 {[%clk 0:00:07]} 31. Rxd1 {[%clk 0:00:44]}  Qf3 {[%clk 0:00:07]} 32. Rd3 {[%clk 0:00:39]}  Qh1+ {[%clk 0:00:06]} 33. Ka2 {[%clk 0:00:39]}  Rcd8 {[%clk 0:00:04]} 34. a5 {[%clk 0:00:33]}  e4 {[%clk 0:00:03]} 35. axb6 {[%clk 0:00:34]}  exd3 {[%clk 0:00:03]} 36. bxa7+ {[%clk 0:00:31]}  Ka8 {[%clk 0:00:03]} 37. Nc4 {[%clk 0:00:20]}  Qd5 {[%clk 0:00:03]} 38. Qb3 {[%clk 0:00:19]}  Qxf5 {[%clk 0:00:02]} 39. Nb6+ {[%clk 0:00:18]}  Kxa7 {[%clk 0:00:01]} 40. Qa4+ {[%clk 0:00:11]}  Kb8 {[%clk 0:00:01]} 41. Qa8+ {[%clk 0:00:10]}  Kc7 {[%clk 0:00:01]} 42. Qc6+ {[%clk 0:00:10]}  Kb8 {[%clk 0:00:02]} 43. Qa8+ {[%clk 0:00:08]}  Kc7 {[%clk 0:00:02]} 44. Qa7+ {[%clk 0:00:08]}  Kd6 {[%clk 0:00:02]} 45. Nc4+ {[%clk 0:00:07]}  Ke6 {[%clk 0:00:03]} 46. Bc5 {[%clk 0:00:02]}  Qf3 {[%clk 0:00:02]} 47. Qb6+ {[%clk 0:00:02]}  Kf5 {[%clk 0:00:02]} 48. Qg6+ {[%clk 0:00:01]}  Kg4 {[%clk 0:00:02]} 49. Ne5+ {[%clk 0:00:02]}  Kh3 {[%clk 0:00:02]} 50. Nxf3 {[%clk 0:00:03]}  Rxf3 {[%clk 0:00:02]} 51. Qe6+ {[%clk 0:00:03]}  Kg2 {[%clk 0:00:02]} 52. Bc6 {[%clk 0:00:04]}  d2 {[%clk 0:00:00]} 53. Qe2+ {[%clk 0:00:04]} 1-0


[Site "https://www.chess.com"]

[Event "Titled Tuesday Blitz June 13 Early 2023"]
[White "Elsa167"]
[Black "Lehtosaari, Mauri"]
[BlackFideId "501999"]
[WhiteElo "2907"]
[BlackElo "2568"]
[Result "1-0"]
[Round "4"]
[TimeControl "180+2"]
[Date "2023.06.13"]
[WhiteClock "0:00:08"]
[BlackClock "0:00:03"]
[Board "20"]

1. d4 {[%clk 0:03:00]}  d5 {[%clk 0:02:59]} 2. c4 {[%clk 0:03:00]}  c6 {[%clk 0:02:54]} 3. cxd5 {[%clk 0:03:01]}  cxd5 {[%clk 0:02:54]} 4. Bf4 {[%clk 0:03:01]}  Nc6 {[%clk 0:02:50]} 5. e3 {[%clk 0:03:02]}  Nf6 {[%clk 0:02:49]} 6. Nc3 {[%clk 0:03:02]}  Bf5 {[%clk 0:02:47]} 7. Qb3 {[%clk 0:03:02]}  Na5 {[%clk 0:02:31]} 8. Qa4+ {[%clk 0:03:02]}  Bd7 {[%clk 0:02:31]} 9. Qc2 {[%clk 0:03:03]}  e6 {[%clk 0:02:27]} 10. Bd3 {[%clk 0:03:03]}  Be7 {[%clk 0:02:18]} 11. Nf3 {[%clk 0:03:03]}  O-O {[%clk 0:02:18]} 12. O-O {[%clk 0:03:02]}  Rc8 {[%clk 0:02:17]} 13. Ne5 {[%clk 0:02:58]}  a6 {[%clk 0:02:14]} 14. Bg5 {[%clk 0:02:38]}  h6 {[%clk 0:02:11]} 15. Bh4 {[%clk 0:02:39]}  b5 {[%clk 0:02:10]} 16. Qe2 {[%clk 0:02:38]}  Nc4 {[%clk 0:02:04]} 17. a4 {[%clk 0:02:28]}  b4 {[%clk 0:01:17]} 18. Nb1 {[%clk 0:02:27]}  a5 {[%clk 0:01:16]} 19. Nxc4 {[%clk 0:02:20]}  dxc4 {[%clk 0:01:17]} 20. Bxc4 {[%clk 0:02:21]}  Bc6 {[%clk 0:01:16]} 21. Nd2 {[%clk 0:02:16]}  Qd7 {[%clk 0:01:06]} 22. Bxf6 {[%clk 0:01:55]}  Bxf6 {[%clk 0:01:05]} 23. b3 {[%clk 0:01:56]}  e5 {[%clk 0:01:01]} 24. dxe5 {[%clk 0:01:54]}  Bxe5 {[%clk 0:01:01]} 25. Rad1 {[%clk 0:01:55]}  Qf5 {[%clk 0:00:57]} 26. Nf3 {[%clk 0:01:37]}  Bb8 {[%clk 0:00:52]} 27. Nd4 {[%clk 0:01:29]}  Qe5 {[%clk 0:00:42]} 28. f4 {[%clk 0:01:26]}  Qe4 {[%clk 0:00:39]} 29. Nxc6 {[%clk 0:01:19]}  Qxc6 {[%clk 0:00:36]} 30. e4 {[%clk 0:01:10]}  Rcd8 {[%clk 0:00:31]} 31. e5 {[%clk 0:00:54]}  Ba7+ {[%clk 0:00:22]} 32. Kh1 {[%clk 0:00:54]}  Qc5 {[%clk 0:00:22]} 33. h4 {[%clk 0:00:44]}  Qe3 {[%clk 0:00:18]} 34. Qxe3 {[%clk 0:00:42]}  Bxe3 {[%clk 0:00:19]} 35. g3 {[%clk 0:00:40]}  g6 {[%clk 0:00:17]} 36. Kg2 {[%clk 0:00:35]}  Kg7 {[%clk 0:00:17]} 37. Kf3 {[%clk 0:00:36]}  Bc5 {[%clk 0:00:17]} 38. Ke4 {[%clk 0:00:30]}  h5 {[%clk 0:00:17]} 39. Bd5 {[%clk 0:00:29]}  Rfe8 {[%clk 0:00:17]} 40. Rc1 {[%clk 0:00:28]}  Rc8 {[%clk 0:00:15]} 41. Rc4 {[%clk 0:00:26]}  Rc7 {[%clk 0:00:15]} 42. Rfc1 {[%clk 0:00:26]}  Rec8 {[%clk 0:00:15]} 43. Bb7 {[%clk 0:00:20]}  Rxb7 {[%clk 0:00:14]} 44. Rxc5 {[%clk 0:00:21]}  Rd8 {[%clk 0:00:13]} 45. Rc7 {[%clk 0:00:16]}  Rbb8 {[%clk 0:00:10]} 46. e6 {[%clk 0:00:15]}  Rf8 {[%clk 0:00:10]} 47. R1c5 {[%clk 0:00:11]}  Rbe8 {[%clk 0:00:09]} 48. Re5 {[%clk 0:00:10]}  Kf6 {[%clk 0:00:08]} 49. Rxf7+ {[%clk 0:00:08]}  Rxf7 {[%clk 0:00:06]} 50. exf7 {[%clk 0:00:09]}  Rc8 {[%clk 0:00:07]} 51. Rxa5 {[%clk 0:00:08]}  Kxf7 {[%clk 0:00:03]} 52. Rb5 {[%clk 0:00:08]} 1-0


[Site "https://www.chess.com"]

[Event "Titled Tuesday Blitz June 13 Early 2023"]
[White "Carlsen, Magnus"]
[Black "Chernobay, Artem"]
[WhiteFideId "1503014"]
[BlackFideId "4167406"]
[WhiteElo "2858"]
[BlackElo "2474"]
[Result "1-0"]
[Round "4"]
[TimeControl "180+2"]
[Date "2023.06.13"]
[WhiteClock "0:00:07"]
[BlackClock "0:00:00"]
[Board "21"]

1. d4 {[%clk 0:03:00]}  Nf6 {[%clk 0:02:59]} 2. Nc3 {[%clk 0:03:01]}  d5 {[%clk 0:02:58]} 3. Bf4 {[%clk 0:03:01]}  a6 {[%clk 0:02:57]} 4. e3 {[%clk 0:03:00]}  e6 {[%clk 0:02:56]} 5. g4 {[%clk 0:02:59]}  c5 {[%clk 0:02:40]} 6. g5 {[%clk 0:02:59]}  Nfd7 {[%clk 0:02:32]} 7. h4 {[%clk 0:02:58]}  Nc6 {[%clk 0:02:31]} 8. Nf3 {[%clk 0:02:58]}  b5 {[%clk 0:02:19]} 9. a3 {[%clk 0:02:54]}  Bb7 {[%clk 0:02:18]} 10. h5 {[%clk 0:02:54]}  h6 {[%clk 0:02:17]} 11. g6 {[%clk 0:02:54]}  f5 {[%clk 0:02:16]} 12. Ne2 {[%clk 0:02:52]}  Be7 {[%clk 0:01:56]} 13. c3 {[%clk 0:02:49]}  O-O {[%clk 0:01:55]} 14. dxc5 {[%clk 0:02:31]}  Bxc5 {[%clk 0:01:45]} 15. b4 {[%clk 0:01:50]}  Bb6 {[%clk 0:01:35]} 16. Ned4 {[%clk 0:01:49]}  Qf6 {[%clk 0:01:28]} 17. Bg3 {[%clk 0:01:45]}  e5 {[%clk 0:01:11]} 18. Nxb5 {[%clk 0:01:30]}  Qe6 {[%clk 0:00:49]} 19. c4 {[%clk 0:01:26]}  d4 {[%clk 0:00:32]} 20. c5 {[%clk 0:01:15]}  Nxc5 {[%clk 0:00:31]} 21. Rc1 {[%clk 0:01:10]}  axb5 {[%clk 0:00:31]} 22. Bxb5 {[%clk 0:01:11]}  Ba6 {[%clk 0:00:26]} 23. Bxa6 {[%clk 0:00:50]}  Nxa6 {[%clk 0:00:26]} 24. b5 {[%clk 0:00:39]}  f4 {[%clk 0:00:26]} 25. Rxc6 {[%clk 0:00:38]}  Ba5+ {[%clk 0:00:21]} 26. Kf1 {[%clk 0:00:34]}  Qd5 {[%clk 0:00:21]} 27. exf4 {[%clk 0:00:22]}  Qxb5+ {[%clk 0:00:20]} 28. Kg1 {[%clk 0:00:21]}  Qxc6 {[%clk 0:00:19]} 29. Qb3+ {[%clk 0:00:22]}  Kh8 {[%clk 0:00:16]} 30. Nxe5 {[%clk 0:00:22]}  Qf6 {[%clk 0:00:08]} 31. Qd5 {[%clk 0:00:20]}  Nc7 {[%clk 0:00:07]} 32. Qxd4 {[%clk 0:00:19]}  Bb6 {[%clk 0:00:03]} 33. Qc4 {[%clk 0:00:17]}  Qe6 {[%clk 0:00:03]} 34. Qe4 {[%clk 0:00:16]}  Qd5 {[%clk 0:00:02]} 35. Qe2 {[%clk 0:00:11]}  Rae8 {[%clk 0:00:02]} 36. Kh2 {[%clk 0:00:11]}  Kg8 {[%clk 0:00:02]} 37. Rd1 {[%clk 0:00:11]}  Qe6 {[%clk 0:00:02]} 38. Qe4 {[%clk 0:00:08]}  Re7 {[%clk 0:00:02]} 39. Rc1 {[%clk 0:00:07]}  Nd5 {[%clk 0:00:01]} 40. Rc6 {[%clk 0:00:07]}  Qxc6 {[%clk 0:00:01]} 41. Qd3 {[%clk 0:00:06]}  Qe6 {[%clk 0:00:01]} 42. Nf7 {[%clk 0:00:06]}  Rfxf7 {[%clk 0:00:01]} 43. gxf7+ {[%clk 0:00:07]}  Qxf7 {[%clk 0:00:01]} 44. f5 {[%clk 0:00:07]}  Qxh5+ {[%clk 0:00:01]} 45. Kg2 {[%clk 0:00:07]}  Qf7 {[%clk 0:00:01]} 46. a4 {[%clk 0:00:07]}  Re8 {[%clk 0:00:02]} 47. Qb5 {[%clk 0:00:07]}  Bd8 {[%clk 0:00:00]} 48. a5 {[%clk 0:00:07]} 1-0


[Site "https://www.chess.com"]

[Event "Titled Tuesday Blitz June 13 Early 2023"]
[White "Csonka, Balazs"]
[Black "Bortnyk, Olexandr"]
[WhiteFideId "742910"]
[BlackFideId "14120828"]
[WhiteElo "2404"]
[BlackElo "2733"]
[Result "1-0"]
[Round "4"]
[TimeControl "180+2"]
[Date "2023.06.13"]
[WhiteClock "0:00:04"]
[BlackClock "0:00:38"]
[Board "25"]

1. d4 {[%clk 0:03:00]}  d6 {[%clk 0:02:57]} 2. e4 {[%clk 0:02:57]}  Nf6 {[%clk 0:02:57]} 3. Nc3 {[%clk 0:02:50]}  Nbd7 {[%clk 0:02:57]} 4. f4 {[%clk 0:02:47]}  e5 {[%clk 0:02:57]} 5. Nf3 {[%clk 0:02:47]}  exd4 {[%clk 0:02:58]} 6. Qxd4 {[%clk 0:02:48]}  c6 {[%clk 0:02:58]} 7. Bd2 {[%clk 0:02:23]}  d5 {[%clk 0:02:57]} 8. exd5 {[%clk 0:01:31]}  Bc5 {[%clk 0:02:56]} 9. Qd3 {[%clk 0:01:31]}  O-O {[%clk 0:02:56]} 10. O-O-O {[%clk 0:01:29]}  Nb6 {[%clk 0:02:48]} 11. dxc6 {[%clk 0:01:15]}  Qc7 {[%clk 0:02:48]} 12. Ng5 {[%clk 0:01:13]}  Rd8 {[%clk 0:02:43]} 13. Qg3 {[%clk 0:01:01]}  Bf5 {[%clk 0:02:36]} 14. cxb7 {[%clk 0:00:37]}  Qxb7 {[%clk 0:02:35]} 15. Bb5 {[%clk 0:00:38]}  a6 {[%clk 0:02:25]} 16. Ba4 {[%clk 0:00:35]}  Nxa4 {[%clk 0:02:24]} 17. Nxa4 {[%clk 0:00:36]}  Rac8 {[%clk 0:02:04]} 18. Nxc5 {[%clk 0:00:32]}  Rxc5 {[%clk 0:02:03]} 19. Bc3 {[%clk 0:00:33]}  Rb8 {[%clk 0:02:01]} 20. Rd2 {[%clk 0:00:23]}  Bg6 {[%clk 0:01:39]} 21. Rhd1 {[%clk 0:00:17]}  Nd5 {[%clk 0:01:39]} 22. f5 {[%clk 0:00:10]}  h6 {[%clk 0:01:20]} 23. fxg6 {[%clk 0:00:07]}  fxg6 {[%clk 0:01:08]} 24. Rxd5 {[%clk 0:00:06]}  Rxd5 {[%clk 0:01:03]} 25. Rxd5 {[%clk 0:00:07]}  Rf8 {[%clk 0:01:00]} 26. Rd1 {[%clk 0:00:05]}  hxg5 {[%clk 0:01:00]} 27. Qxg5 {[%clk 0:00:05]}  Kh7 {[%clk 0:00:58]} 28. Qh4+ {[%clk 0:00:05]}  Kg8 {[%clk 0:00:58]} 29. Qg3 {[%clk 0:00:05]}  Qf7 {[%clk 0:00:57]} 30. b3 {[%clk 0:00:04]}  a5 {[%clk 0:00:57]} 31. Kb2 {[%clk 0:00:05]}  a4 {[%clk 0:00:58]} 32. Qd3 {[%clk 0:00:04]}  Qe7 {[%clk 0:00:56]} 33. Qd5+ {[%clk 0:00:04]}  Kh7 {[%clk 0:00:56]} 34. Rd3 {[%clk 0:00:05]}  a3+ {[%clk 0:00:55]} 35. Kc1 {[%clk 0:00:05]}  Rf1+ {[%clk 0:00:55]} 36. Rd1 {[%clk 0:00:05]}  Rf2 {[%clk 0:00:49]} 37. Kb1 {[%clk 0:00:04]}  Qe2 {[%clk 0:00:48]} 38. Qd3 {[%clk 0:00:04]}  Qxd3 {[%clk 0:00:44]} 39. cxd3 {[%clk 0:00:04]}  Rxg2 {[%clk 0:00:44]} 40. d4 {[%clk 0:00:04]}  Rxh2 {[%clk 0:00:39]} 41. d5 {[%clk 0:00:04]}  Rh1 {[%clk 0:00:38]} 42. Rxh1+ {[%clk 0:00:04]} 1-0


[Site "https://www.chess.com"]

[Event "Titled Tuesday Blitz June 13 Early 2023"]
[White "Keymer, Vincent"]
[Black "Tristan, Leonardo"]
[WhiteFideId "12940690"]
[BlackFideId "113816"]
[WhiteElo "2669"]
[BlackElo "2461"]
[Result "1-0"]
[Round "4"]
[TimeControl "180+2"]
[Date "2023.06.13"]
[WhiteClock "0:00:17"]
[BlackClock "0:00:00"]
[Board "28"]

1. a3 {[%clk 0:02:57]}  d5 {[%clk 0:02:58]} 2. Nf3 {[%clk 0:02:57]}  Bf5 {[%clk 0:02:58]} 3. c4 {[%clk 0:02:53]}  e6 {[%clk 0:02:55]} 4. Qb3 {[%clk 0:02:48]}  Nc6 {[%clk 0:02:09]} 5. Qxb7 {[%clk 0:02:36]}  Nge7 {[%clk 0:02:09]} 6. cxd5 {[%clk 0:01:58]}  exd5 {[%clk 0:02:09]} 7. e3 {[%clk 0:01:55]}  Rb8 {[%clk 0:02:03]} 8. Qa6 {[%clk 0:01:55]}  g5 {[%clk 0:02:01]} 9. Nxg5 {[%clk 0:01:26]}  Bg7 {[%clk 0:02:01]} 10. Nf3 {[%clk 0:01:18]}  Bxb2 {[%clk 0:01:29]} 11. Bxb2 {[%clk 0:01:18]}  Rxb2 {[%clk 0:01:30]} 12. Nc3 {[%clk 0:01:18]}  O-O {[%clk 0:01:22]} 13. Bb5 {[%clk 0:00:56]}  d4 {[%clk 0:01:19]} 14. Nd1 {[%clk 0:00:51]}  Rb3 {[%clk 0:00:45]} 15. Bxc6 {[%clk 0:00:50]}  Rb6 {[%clk 0:00:41]} 16. Qa5 {[%clk 0:00:50]}  dxe3 {[%clk 0:00:22]} 17. Nxe3 {[%clk 0:00:44]}  Rxc6 {[%clk 0:00:22]} 18. Nxf5 {[%clk 0:00:42]}  Nxf5 {[%clk 0:00:20]} 19. Qxf5 {[%clk 0:00:42]}  Re8+ {[%clk 0:00:19]} 20. Kf1 {[%clk 0:00:40]}  Rf6 {[%clk 0:00:16]} 21. Qg4+ {[%clk 0:00:37]}  Kf8 {[%clk 0:00:14]} 22. Qd4 {[%clk 0:00:32]}  Rd6 {[%clk 0:00:14]} 23. Qh8+ {[%clk 0:00:27]}  Ke7 {[%clk 0:00:14]} 24. Qxh7 {[%clk 0:00:25]}  Re6 {[%clk 0:00:10]} 25. g3 {[%clk 0:00:23]}  Qd5 {[%clk 0:00:11]} 26. Kg2 {[%clk 0:00:21]}  Rf6 {[%clk 0:00:11]} 27. Rhe1+ {[%clk 0:00:16]}  Kd7 {[%clk 0:00:12]} 28. Qh3+ {[%clk 0:00:16]}  Ree6 {[%clk 0:00:09]} 29. Qg4 {[%clk 0:00:17]}  Rg6 {[%clk 0:00:00]} 30. Qd4 {[%clk 0:00:17]} 1-0


[Site "https://www.chess.com"]

[Event "Titled Tuesday Blitz June 13 Early 2023"]
[White "Gorovets, Andrey"]
[Black "Skvortsov, Andrei"]
[WhiteFideId "13504037"]
[BlackFideId "24108600"]
[WhiteElo "2459"]
[BlackElo "2259"]
[Result "0-1"]
[Round "4"]
[TimeControl "180+2"]
[Date "2023.06.13"]
[WhiteClock "0:00:00"]
[BlackClock "0:00:16"]
[Board "29"]

1. c4 {[%clk 0:02:57]}  g6 {[%clk 0:02:56]} 2. e4 {[%clk 0:02:56]}  Bg7 {[%clk 0:02:55]} 3. d4 {[%clk 0:02:56]}  e6 {[%clk 0:02:55]} 4. Nf3 {[%clk 0:02:53]}  Ne7 {[%clk 0:02:55]} 5. Bf4 {[%clk 0:02:37]}  d5 {[%clk 0:02:54]} 6. e5 {[%clk 0:02:36]}  dxc4 {[%clk 0:02:46]} 7. Bxc4 {[%clk 0:02:36]}  Nbc6 {[%clk 0:02:43]} 8. Nc3 {[%clk 0:02:18]}  Nf5 {[%clk 0:02:39]} 9. d5 {[%clk 0:02:18]}  exd5 {[%clk 0:02:38]} 10. Bxd5 {[%clk 0:02:14]}  O-O {[%clk 0:02:33]} 11. O-O {[%clk 0:02:11]}  Be6 {[%clk 0:02:28]} 12. Re1 {[%clk 0:01:52]}  Re8 {[%clk 0:02:12]} 13. Bxc6 {[%clk 0:01:34]}  bxc6 {[%clk 0:02:09]} 14. Qa4 {[%clk 0:01:26]}  c5 {[%clk 0:01:57]} 15. Bg5 {[%clk 0:01:20]}  Qb8 {[%clk 0:01:55]} 16. Ne4 {[%clk 0:00:58]}  Qxb2 {[%clk 0:01:40]} 17. Nxc5 {[%clk 0:00:39]}  h6 {[%clk 0:01:26]} 18. Reb1 {[%clk 0:00:24]}  Qe2 {[%clk 0:01:19]} 19. Re1 {[%clk 0:00:24]}  Qb2 {[%clk 0:01:00]} 20. Reb1 {[%clk 0:00:24]}  Qxa1 {[%clk 0:01:00]} 21. Rxa1 {[%clk 0:00:24]}  hxg5 {[%clk 0:01:00]} 22. Re1 {[%clk 0:00:18]}  Bd5 {[%clk 0:00:58]} 23. Nxg5 {[%clk 0:00:17]}  Bxe5 {[%clk 0:00:49]} 24. Qd7 {[%clk 0:00:16]}  c6 {[%clk 0:00:42]} 25. Qb7 {[%clk 0:00:04]}  Bf6 {[%clk 0:00:32]} 26. Nge4 {[%clk 0:00:03]}  Bd4 {[%clk 0:00:23]} 27. Qb1 {[%clk 0:00:03]}  Rab8 {[%clk 0:00:21]} 28. Qc1 {[%clk 0:00:03]}  Kg7 {[%clk 0:00:21]} 29. g3 {[%clk 0:00:00]}  Rb2 {[%clk 0:00:16]} 0-1


[Site "https://www.chess.com"]